[Event "Elitserien 2019/2020, round 1-3"]
[Site "Uppsala University, Gamla torget, Uppsala, Sweden"]
[Date "2019.10.19"]
[Round "2.11"]
[White "Persson, Mats"]
[Black "Miezis, Normunds"]
[Result "1/2-1/2"]
[TimeControl "90 minutes for 40 moves + 30 minutes for the rest of the game + 30 seconds per move from move one."]
[WhiteTitle "FM"]
[BlackTitle "GM"]
[WhiteFideId "1708333"]
[BlackFideId "11600136"]
[WhiteElo "2283"]
[BlackElo "2486"]

1. d4 {[%clk 01:30:54]} {[%emt 00:00:05]} Nf6 {[%clk 01:29:18]} {[%emt
00:01:42]} 2. Nf3 {[%clk 01:31:18]} {[%emt 00:00:06]} e6 {[%clk 01:29:13]}
{[%emt 00:00:35]} 3. g3 {[%clk 01:31:31]} {[%emt 00:00:18]} b5 {[%clk
01:28:51]} {[%emt 00:00:51]} 4. Bg2 {[%clk 01:31:43]} {[%emt 00:00:19]} Bb7
{[%clk 01:29:06]} {[%emt 00:00:14]} 5. O-O {[%clk 01:31:55]} {[%emt 00:00:18]}
c5 {[%clk 01:27:44]} {[%emt 00:01:52]} 6. c3 {[%clk 01:31:59]} {[%emt
00:00:26]} Na6 {[%clk 01:27:19]} {[%emt 00:00:55]} 7. Bg5 {[%clk 01:31:43]}
{[%emt 00:00:46]} Be7 {[%clk 01:26:11]} {[%emt 00:01:38]} 8. Nbd2 {[%clk
01:31:14]} {[%emt 00:01:00]} O-O {[%clk 01:17:57]} {[%emt 00:08:44]} 9. e3
{[%clk 01:26:47]} {[%emt 00:04:56]} h6 {[%clk 01:06:05]} {[%emt 00:12:22]} 10.
Bxf6 {[%clk 01:27:07]} {[%emt 00:00:10]} Bxf6 {[%clk 01:06:27]} {[%emt
00:00:08]} 11. Ne1 {[%clk 01:19:02]} {[%emt 00:08:35]} Qb6 {[%clk 01:01:35]}
{[%emt 00:05:21]} 12. Bxb7 {[%clk 01:15:25]} {[%emt 00:04:09]} Qxb7 {[%clk
01:01:56]} {[%emt 00:00:08]} 13. Qf3 {[%clk 01:10:57]} {[%emt 00:04:58]} d5
{[%clk 00:59:02]} {[%emt 00:03:23]} 14. Nd3 {[%clk 01:10:51]} {[%emt 00:00:36]}
b4 {[%clk 00:57:31]} {[%emt 00:02:02]} 15. Nb3 {[%clk 01:00:39]} {[%emt
00:10:43]} cxd4 {[%clk 00:49:58]} {[%emt 00:08:03]} 16. cxd4 {[%clk 00:58:01]}
{[%emt 00:03:07]} Qb5 {[%clk 00:49:49]} {[%emt 00:00:38]} 17. Qe2 {[%clk
00:48:45]} {[%emt 00:09:47]} Nc7 {[%clk 00:41:33]} {[%emt 00:08:45]} 18. Rfc1
{[%clk 00:48:17]} {[%emt 00:00:59]} Ne8 {[%clk 00:41:33]} {[%emt 00:00:29]} 19.
Rc5 {[%clk 00:44:40]} {[%emt 00:04:07]} Qb8 {[%clk 00:39:12]} {[%emt 00:02:50]}
20. Rac1 {[%clk 00:41:44]} {[%emt 00:03:27]} Nd6 {[%clk 00:34:41]} {[%emt
00:05:01]} 21. Nd2 {[%clk 00:36:17]} {[%emt 00:05:58]} a5 {[%clk 00:32:03]}
{[%emt 00:03:07]} 22. Qd1 {[%clk 00:35:47]} {[%emt 00:01:02]} a4 {[%clk
00:30:18]} {[%emt 00:02:14]} 23. Qe2 {[%clk 00:34:04]} {[%emt 00:02:14]} Ra7
{[%clk 00:27:45]} {[%emt 00:03:01]} 24. Nf4 {[%clk 00:28:35]} {[%emt 00:06:00]}
Be7 {[%clk 00:20:25]} {[%emt 00:07:48]} 25. R5c2 {[%clk 00:26:29]} {[%emt
00:02:37]} Rc8 {[%clk 00:17:01]} {[%emt 00:03:54]} 26. Rxc8+ {[%clk 00:26:01]}
{[%emt 00:00:59]} Nxc8 {[%clk 00:17:21]} {[%emt 00:00:09]} 27. Nd3 {[%clk
00:26:02]} {[%emt 00:00:30]} Rc7 {[%clk 00:16:15]} {[%emt 00:01:35]} 28. Qd1
{[%clk 00:26:10]} {[%emt 00:00:23]} Nb6 {[%clk 00:15:59]} {[%emt 00:00:46]} 29.
b3 {[%clk 00:22:32]} {[%emt 00:04:08]} a3 {[%clk 00:14:19]} {[%emt 00:02:10]}
30. Nf3 {[%clk 00:18:11]} {[%emt 00:04:51]} Qc8 {[%clk 00:12:52]} {[%emt
00:01:55]} 31. Rxc7 {[%clk 00:14:14]} {[%emt 00:04:29]} Qxc7 {[%clk 00:13:14]}
{[%emt 00:00:08]} 32. Qd2 {[%clk 00:14:32]} {[%emt 00:00:12]} Qb7 {[%clk
00:08:03]} {[%emt 00:05:39]} 33. Nfe1 {[%clk 00:13:24]} {[%emt 00:01:40]} Nc4
{[%clk 00:04:54]} {[%emt 00:03:39]} 34. Qc2 {[%clk 00:10:14]} {[%emt 00:03:39]}
Na5 {[%clk 00:03:50]} {[%emt 00:01:34]} 35. Ne5 {[%clk 00:07:27]} {[%emt
00:03:18]} Bd6 {[%clk 00:03:27]} {[%emt 00:00:52]} 36. N5d3 {[%clk 00:05:44]}
{[%emt 00:02:14]} Qa6 {[%clk 00:03:00]} {[%emt 00:00:57]} 37. Qd1 {[%clk
00:04:14]} {[%emt 00:02:00]} Qc6 {[%clk 00:02:39]} {[%emt 00:00:51]} 38. Qd2
{[%clk 00:03:56]} {[%emt 00:00:48]} Qb5 {[%clk 00:02:39]} {[%emt 00:00:29]} 39.
Qc2 {[%clk 00:03:38]} {[%emt 00:00:49]} g6 {[%clk 00:02:44]} {[%emt 00:00:25]}
40. Kg2 {[%clk 00:01:48]} {[%emt 00:02:20]} Kg7 {[%clk 00:03:03]} {[%emt
00:00:11]} 41. h4 {[%clk 00:01:44]} {[%emt 00:00:34]} Qb7 {[%clk 00:02:20]}
{[%emt 00:01:11]} 42. Kg1 {[%clk 00:30:21]} {[%emt 00:01:54]} Qb5 {[%clk
00:24:53]} {[%emt 00:07:57]} 43. Kg2 {[%clk 00:30:35]} {[%emt 00:00:16]} Qc6
{[%clk 00:23:56]} {[%emt 00:01:26]} 44. Qd2 {[%clk 00:26:52]} {[%emt 00:04:14]}
Nc4 {[%clk 00:20:36]} {[%emt 00:03:49]} 45. Qc2 {[%clk 00:27:12]} {[%emt
00:00:10]} Qb7 {[%clk 00:16:13]} {[%emt 00:04:51]} 46. Kh2 {[%clk 00:26:08]}
{[%emt 00:01:36]} Na5 {[%clk 00:15:24]} {[%emt 00:01:19]} 47. Kg1 {[%clk
00:25:18]} {[%emt 00:01:22]} Nc6 {[%clk 00:14:50]} {[%emt 00:01:03]} 48. Nf3
{[%clk 00:24:30]} {[%emt 00:01:18]} Na7 {[%clk 00:12:20]} {[%emt 00:02:59]} 49.
Qd2 {[%clk 00:24:29]} {[%emt 00:00:32]} h5 {[%clk 00:11:13]} {[%emt 00:01:37]}
50. Kg2 {[%clk 00:23:50]} {[%emt 00:01:08]} Nc6 {[%clk 00:11:18]} {[%emt
00:00:25]} 51. Kh2 {[%clk 00:23:37]} {[%emt 00:00:44]} Qc7 {[%clk 00:11:15]}
{[%emt 00:00:32]} 52. Kg2 {[%clk 00:22:49]} {[%emt 00:01:19]} Qb7 {[%clk
00:09:40]} {[%emt 00:02:03]} 53. Kh2 {[%clk 00:23:03]} {[%emt 00:00:17]} Qb6
{[%clk 00:10:00]} {[%emt 00:00:09]} 54. Kg2 {[%clk 00:23:10]} {[%emt 00:00:25]}
Qc7 {[%clk 00:10:22]} {[%emt 00:00:07]} 55. Kh2 {[%clk 00:21:14]} {[%emt
00:02:27]} Na5 {[%clk 00:08:45]} {[%emt 00:02:06]} 56. Kg2 {[%clk 00:13:03]}
{[%emt 00:08:42]} Nc6 {[%clk 00:07:16]} {[%emt 00:01:59]} 57. Qc2 {[%clk
00:11:48]} {[%emt 00:01:45]} Qb6 {[%clk 00:07:19]} {[%emt 00:00:26]} 58. Qd2
{[%clk 00:11:52]} {[%emt 00:00:27]} Ne7 {[%clk 00:07:22]} {[%emt 00:00:25]} 59.
Qc1 {[%clk 00:08:47]} {[%emt 00:03:37]} Nf5 {[%clk 00:06:37]} {[%emt 00:01:15]}
60. Nfe5 {[%clk 00:07:30]} {[%emt 00:01:47]} Ne7 {[%clk 00:06:19]} {[%emt
00:00:47]} 61. Nf3 {[%clk 00:07:37]} {[%emt 00:00:23]} Nc6 {[%clk 00:06:23]}
{[%emt 00:00:26]} 62. Qc2 {[%clk 00:07:45]} {[%emt 00:00:22]} Qb7 {[%clk
00:05:51]} {[%emt 00:01:01]} 63. Qd2 {[%clk 00:05:24]} {[%emt 00:02:53]} Qc7
{[%clk 00:06:04]} {[%emt 00:00:15]} 64. Qc2 {[%clk 00:05:39]} {[%emt 00:00:17]}
Qb7 {[%clk 00:06:17]} {[%emt 00:00:17]} 65. Qd2 {[%clk 00:06:03]} {[%emt
00:00:07]} Qc7 {[%clk 00:06:39]} {[%emt 00:00:06]} 66. Qc2 {[%clk 00:06:30]}
{[%emt 00:00:04]} 1/2-1/2

[Event "Elitserien 2019/2020, round 1-3"]
[Site "Uppsala University, Gamla torget, Uppsala, Sweden"]
[Date "2019.10.19"]
[Round "2.12"]
[White "Norberg, Johan"]
[Black "Larsson, Victor"]
[Result "1-0"]
[TimeControl "90 minutes for 40 moves + 30 minutes for the rest of the game + 30 seconds per move from move one."]
[WhiteTitle "FM"]
[WhiteFideId "1707078"]
[BlackFideId "1707019"]
[WhiteElo "2315"]
[BlackElo "2201"]

1. e4 {[%clk 01:30:59]} {[%emt 00:16:54]} c5 {[%clk 01:28:41]} {[%emt
00:02:22]} 2. Nf3 {[%clk 01:26:46]} {[%emt 00:04:42]} Nc6 {[%clk 01:29:06]}
{[%emt 00:00:04]} 3. d3 {[%clk 01:24:10]} {[%emt 00:03:08]} e6 {[%clk
01:28:44]} {[%emt 00:00:52]} 4. Qe2 {[%clk 01:22:51]} {[%emt 00:01:49]} d6
{[%clk 01:19:39]} {[%emt 00:09:35]} 5. g3 {[%clk 01:20:20]} {[%emt 00:03:00]}
g6 {[%clk 01:18:05]} {[%emt 00:02:04]} 6. Bg2 {[%clk 01:20:21]} {[%emt
00:00:29]} Bg7 {[%clk 01:18:34]} {[%emt 00:00:02]} 7. O-O {[%clk 01:20:07]}
{[%emt 00:00:44]} Nge7 {[%clk 01:18:41]} {[%emt 00:00:22]} 8. c3 {[%clk
01:15:02]} {[%emt 00:05:35]} O-O {[%clk 01:19:07]} {[%emt 00:00:04]} 9. Na3
{[%clk 01:14:19]} {[%emt 00:01:14]} b6 {[%clk 01:18:54]} {[%emt 00:00:43]} 10.
Nc2 {[%clk 01:05:45]} {[%emt 00:09:03]} Ba6 {[%clk 01:19:16]} {[%emt 00:00:09]}
11. Rb1 {[%clk 01:04:49]} {[%emt 00:01:25]} Rc8 {[%clk 01:16:22]} {[%emt
00:03:24]} 12. b4 {[%clk 00:59:20]} {[%emt 00:06:00]} Ne5 {[%clk 00:54:08]}
{[%emt 00:22:44]} 13. Nxe5 {[%clk 00:57:14]} {[%emt 00:02:36]} dxe5 {[%clk
00:53:25]} {[%emt 00:01:13]} 14. b5 {[%clk 00:55:36]} {[%emt 00:02:07]} Bb7
{[%clk 00:52:49]} {[%emt 00:01:07]} 15. Na3 {[%clk 00:51:29]} {[%emt 00:04:36]}
f5 {[%clk 00:52:23]} {[%emt 00:00:57]} 16. Nc4 {[%clk 00:42:26]} {[%emt
00:09:32]} Qc7 {[%clk 00:41:16]} {[%emt 00:11:37]} 17. Re1 {[%clk 00:40:20]}
{[%emt 00:02:36]} Rcd8 {[%clk 00:26:21]} {[%emt 00:15:25]} 18. a4 {[%clk
00:32:50]} {[%emt 00:08:00]} f4 {[%clk 00:25:04]} {[%emt 00:01:47]} 19. Ba3
{[%clk 00:22:58]} {[%emt 00:10:22]} Kh8 {[%clk 00:22:00]} {[%emt 00:03:35]} 20.
Rbd1 {[%clk 00:22:16]} {[%emt 00:01:11]} g5 {[%clk 00:21:48]} {[%emt 00:00:42]}
21. Qh5 {[%clk 00:19:21]} {[%emt 00:03:26]} Bf6 {[%clk 00:21:49]} {[%emt
00:00:28]} 22. Bh3 {[%clk 00:18:45]} {[%emt 00:01:06]} Bc8 {[%emt 00:01:18]} 23.
Kh1 {[%clk 00:17:39]} {[%emt 00:01:34]} Ng6 {[%clk 00:20:08]} {[%emt 00:01:25]}
24. Bc1 {[%clk 00:15:42]} {[%emt 00:02:26]} Bd7 {[%clk 00:17:37]} {[%emt
00:03:02]} 25. Qe2 {[%clk 00:13:14]} {[%emt 00:02:58]} Bg7 {[%clk 00:16:12]}
{[%emt 00:01:55]} 26. Bg4 {[%clk 00:12:14]} {[%emt 00:01:30]} Bc8 {[%clk
00:12:00]} {[%emt 00:04:42]} 27. Bh5 {[%clk 00:12:09]} {[%emt 00:00:35]} Qf7
{[%clk 00:10:50]} {[%emt 00:01:40]} 28. Ba3 {[%clk 00:11:48]} {[%emt 00:00:52]}
Qf6 {[%clk 00:08:30]} {[%emt 00:02:49]} 29. a5 {[%clk 00:11:44]} {[%emt
00:00:34]} Bd7 {[%clk 00:08:49]} {[%emt 00:00:11]} 30. axb6 {[%clk 00:10:43]}
{[%emt 00:01:31]} axb6 {[%clk 00:07:11]} {[%emt 00:02:08]} 31. Nxb6 {[%clk
00:10:50]} {[%emt 00:00:23]} Bxb5 {[%clk 00:07:35]} {[%emt 00:00:07]} 32. Bxc5
{[%clk 00:11:03]} {[%emt 00:00:17]} Rf7 {[%clk 00:05:59]} {[%emt 00:02:06]} 33.
Nc4 {[%clk 00:09:36]} {[%emt 00:01:56]} Rc8 {[%clk 00:06:01]} {[%emt 00:00:28]}
34. Bb4 {[%clk 00:09:36]} {[%emt 00:00:30]} Bxc4 {[%clk 00:05:56]} {[%emt
00:00:36]} 35. dxc4 {[%clk 00:10:02]} {[%emt 00:00:03]} Rfc7 {[%clk 00:06:25]}
36. c5 {[%clk 00:07:00]} {[%emt 00:03:33]} Bf8 {[%clk 00:06:26]} {[%emt
00:00:28]} 37. Rd6 {[%clk 00:06:58]} {[%emt 00:00:32]} Bxd6 {[%clk 00:03:45]}
{[%emt 00:03:12]} 38. cxd6 {[%clk 00:07:21]} {[%emt 00:00:05]} Rc6 {[%clk
00:03:45]} {[%emt 00:00:30]} 39. Rd1 {[%clk 00:06:35]} {[%emt 00:01:17]} Nf8
{[%clk 00:03:42]} {[%emt 00:00:34]} 40. d7 {[%clk 00:03:31]} {[%emt 00:03:33]}
Rd8 {[%clk 00:00:44]} {[%emt 00:03:28]} 41. Qb5 {[%clk 00:28:57]} {[%emt
00:05:03]} Rc7 {[%clk 00:29:49]} {[%emt 00:01:25]} 42. Bd6 {[%clk 00:23:20]}
{[%emt 00:06:08]} Rcxd7 {[%clk 00:28:26]} {[%emt 00:01:54]} 43. Bxe5 {[%clk
00:23:19]} {[%emt 00:00:30]} Rxd1+ {[%clk 00:28:48]} {[%emt 00:00:08]} 44. Kg2
{[%clk 00:21:59]} {[%emt 00:01:50]} Kg7 {[%clk 00:27:26]} {[%emt 00:01:52]} 45.
Bxf6+ Kxf6 {[%clk 00:27:55]} 46. Bxd1 {[%clk 00:21:07]} {[%emt 00:00:17]} Rxd1
{[%clk 00:28:24]} {[%emt 00:00:01]} 47. h4 {[%clk 00:18:10]} {[%emt 00:03:26]}
h6 {[%clk 00:28:16]} {[%emt 00:00:39]} 48. Qe8 {[%clk 00:17:25]} {[%emt
00:01:14]} Ng6 {[%clk 00:28:00]} {[%emt 00:00:46]} 49. h5 {[%clk 00:17:37]}
{[%emt 00:00:18]} Ne7 {[%clk 00:26:29]} {[%emt 00:02:02]} 50. Qh8+ {[%clk
00:17:59]} {[%emt 00:00:06]} Kf7 {[%clk 00:26:51]} {[%emt 00:00:08]} 51. Qh7+
{[%clk 00:18:00]} {[%emt 00:00:30]} Ke8 {[%clk 00:27:11]} {[%emt 00:00:10]} 52.
Qxh6 {[%clk 00:18:25]} {[%emt 00:00:06]} fxg3 {[%clk 00:27:20]} {[%emt
00:00:20]} 53. fxg3 {[%clk 00:17:56]} {[%emt 00:00:59]} g4 {[%clk 00:27:49]}
{[%emt 00:00:01]} 54. Qxe6 {[%clk 00:18:06]} {[%emt 00:00:20]} 1-0

[Event "Elitserien 2019/2020, round 1-3"]
[Site "Uppsala University, Gamla torget, Uppsala, Sweden"]
[Date "2019.10.19"]
[Round "2.13"]
[White "Haitin, Ilja"]
[Black "Landgren, Andreas"]
[Result "1-0"]
[TimeControl "90 minutes for 40 moves + 30 minutes for the rest of the game + 30 seconds per move from move one."]
[WhiteTitle "FM"]
[BlackTitle "FM"]
[WhiteFideId "4501764"]
[BlackFideId "1704311"]
[WhiteElo "2324"]
[BlackElo "2255"]

1. e4 {[%clk 01:30:40]} {[%emt 00:00:19]} e6 {[%clk 01:30:53]} {[%emt
00:00:08]} 2. d4 {[%clk 01:31:06]} {[%emt 00:00:04]} d5 {[%clk 01:31:17]}
{[%emt 00:00:05]} 3. e5 {[%clk 01:31:35]} {[%emt 00:00:02]} c5 {[%clk
01:31:36]} {[%emt 00:00:11]} 4. c3 {[%clk 01:32:02]} {[%emt 00:00:03]} Qb6
{[%clk 01:31:57]} {[%emt 00:00:08]} 5. Bd3 {[%clk 01:30:12]} {[%emt 00:02:21]}
Nc6 {[%clk 01:29:58]} {[%emt 00:02:30]} 6. Ne2 {[%clk 01:30:10]} {[%emt
00:00:31]} Bd7 {[%clk 01:27:55]} {[%emt 00:02:32]} 7. Bc2 {[%clk 01:29:58]}
{[%emt 00:00:43]} Rc8 {[%clk 01:09:19]} {[%emt 00:19:05]} 8. O-O {[%clk
01:28:21]} {[%emt 00:02:07]} cxd4 {[%clk 00:47:20]} {[%emt 00:22:30]} 9. cxd4
{[%clk 01:28:09]} {[%emt 00:00:42]} f6 {[%clk 00:47:34]} {[%emt 00:00:16]} 10.
Nbc3 {[%clk 01:26:17]} {[%emt 00:02:22]} fxe5 {[%clk 00:45:53]} {[%emt
00:02:11]} 11. dxe5 {[%clk 01:25:47]} {[%emt 00:00:59]} Nxe5 {[%clk 00:45:01]}
{[%emt 00:01:23]} 12. Be3 {[%clk 01:01:35]} {[%emt 00:24:41]} Qc7 {[%clk
00:44:03]} {[%emt 00:01:27]} 13. Rc1 {[%clk 00:41:08]} {[%emt 00:20:59]} Qb8
{[%clk 00:35:45]} {[%emt 00:08:47]} 14. f4 {[%clk 00:33:25]} {[%emt 00:08:13]}
Nc4 {[%clk 00:20:43]} {[%emt 00:15:32]} 15. Bd4 {[%clk 00:32:58]} {[%emt
00:00:57]} Nxb2 {[%clk 00:20:39]} {[%emt 00:00:34]} 16. Qe1 {[%clk 00:32:21]}
{[%emt 00:01:08]} Bc5 {[%clk 00:18:43]} {[%emt 00:02:26]} 17. Kh1 {[%clk
00:21:08]} {[%emt 00:11:43]} Nf6 {[%clk 00:16:04]} {[%emt 00:03:08]} 18. Bxf6
{[%clk 00:08:09]} {[%emt 00:13:29]} gxf6 {[%clk 00:16:28]} {[%emt 00:00:06]} 19.
Qh4 {[%clk 00:08:28]} {[%emt 00:00:11]} Be3 {[%clk 00:08:32]} {[%emt 00:08:26]}
20. Rb1 {[%clk 00:06:15]} {[%emt 00:02:44]} Nc4 {[%clk 00:08:41]} {[%emt
00:00:20]} 21. f5 {[%clk 00:04:40]} {[%emt 00:02:06]} Bg5 {[%clk 00:06:31]}
{[%emt 00:02:39]} 22. Qh5+ {[%clk 00:04:34]} {[%emt 00:00:37]} Ke7 {[%clk
00:06:11]} {[%emt 00:00:50]} 23. fxe6 {[%clk 00:04:32]} {[%emt 00:00:32]} Bxe6
{[%clk 00:06:27]} {[%emt 00:00:14]} 24. h4 {[%clk 00:02:18]} {[%emt 00:02:44]}
Bf7 {[%clk 00:04:17]} {[%emt 00:02:39]} 25. Qf3 {[%clk 00:01:45]} {[%emt
00:01:02]} Nd2 {[%clk 00:01:59]} {[%emt 00:02:49]} 26. Nxd5+ {[%clk 00:02:14]}
{[%emt 00:00:01]} Kf8 {[%clk 00:02:03]} {[%emt 00:00:26]} 27. Qa3+ {[%clk
00:02:03]} {[%emt 00:00:41]} Kg8 {[%clk 00:01:45]} {[%emt 00:00:48]} 28. Ne7+
{[%clk 00:01:31]} {[%emt 00:01:03]} Kg7 {[%clk 00:02:12]} {[%emt 00:00:02]} 29.
hxg5 {[%clk 00:01:20]} {[%emt 00:00:41]} Nxf1 {[%clk 00:02:30]} {[%emt
00:00:12]} 30. gxf6+ {[%clk 00:01:05]} {[%emt 00:00:46]} Kh6 {[%clk 00:02:01]}
{[%emt 00:00:59]} 31. Qh3+ {[%clk 00:00:44]} {[%emt 00:00:50]} Kg5 {[%clk
00:02:27]} {[%emt 00:00:05]} 32. Rxf1 {[%clk 00:00:41]} {[%emt 00:00:32]} Bg6
{[%clk 00:02:17]} {[%emt 00:00:39]} 33. Qe3+ {[%clk 00:00:43]} {[%emt
00:00:29]} Kh5 {[%clk 00:02:04]} {[%emt 00:00:43]} 34. Ng3+ {[%clk 00:00:49]}
{[%emt 00:00:24]} Kg4 {[%clk 00:02:21]} {[%emt 00:00:13]} 35. Bd1+ {[%clk
00:00:52]} {[%emt 00:00:27]} Kh4 {[%clk 00:02:49]} {[%emt 00:00:02]} 36. Nef5+
{[%clk 00:00:45]} {[%emt 00:00:37]} Bxf5 {[%clk 00:03:05]} {[%emt 00:00:14]} 37.
Nxf5# {[%clk 00:01:13]} {[%emt 00:00:02]} 1-0

[Event "Elitserien 2019/2020, round 1-3"]
[Site "Uppsala University, Gamla torget, Uppsala, Sweden"]
[Date "2019.10.19"]
[Round "2.14"]
[White "Vaarala, Eric"]
[Black "Linusson, Pelle"]
[Result "0-1"]
[TimeControl "90 minutes for 40 moves + 30 minutes for the rest of the game + 30 seconds per move from move one."]
[WhiteFideId "1711962"]
[BlackFideId "1709062"]
[WhiteElo "2321"]
[BlackElo "2231"]

1. d4 {[%clk 01:30:41]} {[%emt 00:00:18]} Nf6 {[%clk 01:30:46]} {[%emt
00:00:15]} 2. c4 {[%clk 01:29:47]} {[%emt 00:01:23]} g6 {[%clk 01:31:13]}
{[%emt 00:00:04]} 3. f3 {[%clk 01:29:56]} {[%emt 00:00:21]} Nc6 {[%clk
01:29:09]} {[%emt 00:02:35]} 4. e4 {[%clk 01:25:12]} {[%emt 00:05:13]} e5
{[%clk 01:28:25]} {[%emt 00:01:13]} 5. d5 {[%clk 01:21:29]} {[%emt 00:04:12]}
Nd4 {[%clk 01:28:10]} {[%emt 00:00:46]} 6. Nc3 {[%clk 01:21:21]} {[%emt
00:00:39]} Bc5 {[%clk 01:19:50]} {[%emt 00:08:50]} 7. Nh3 {[%clk 01:12:32]}
{[%emt 00:09:18]} d6 {[%clk 01:15:34]} {[%emt 00:04:47]} 8. Nf2 {[%clk
01:10:27]} {[%emt 00:02:34]} Nh5 {[%clk 01:14:56]} {[%emt 00:01:09]} 9. g3
{[%clk 00:59:43]} {[%emt 00:11:13]} a5 {[%clk 01:10:50]} {[%emt 00:04:37]} 10.
Nd3 {[%clk 00:57:08]} {[%emt 00:03:04]} Bb6 {[%clk 01:09:16]} {[%emt 00:02:05]}
11. Bg2 {[%clk 00:56:09]} {[%emt 00:01:27]} f5 {[%clk 01:01:56]} {[%emt
00:07:52]} 12. Na4 {[%clk 00:44:24]} {[%emt 00:12:14]} Ba7 {[%clk 00:59:38]}
{[%emt 00:02:48]} 13. c5 {[%clk 00:44:10]} {[%emt 00:00:43]} fxe4 {[%clk
00:58:53]} {[%emt 00:01:17]} 14. fxe4 {[%clk 00:44:30]} {[%emt 00:00:09]} O-O
{[%clk 00:59:19]} {[%emt 00:00:05]} 15. Be3 {[%clk 00:42:46]} {[%emt 00:02:13]}
Bd7 {[%clk 00:58:40]} {[%emt 00:01:10]} 16. Rc1 {[%clk 00:28:34]} {[%emt
00:14:42]} Qe7 {[%clk 00:50:03]} {[%emt 00:09:07]} 17. Bxd4 {[%clk 00:16:08]}
{[%emt 00:12:56]} exd4 {[%clk 00:50:22]} {[%emt 00:00:11]} 18. c6 {[%clk
00:16:35]} {[%emt 00:00:03]} bxc6 {[%clk 00:41:04]} {[%emt 00:09:48]} 19. dxc6
{[%clk 00:16:30]} {[%emt 00:00:34]} Be6 {[%clk 00:41:12]} {[%emt 00:00:23]} 20.
b3 {[%clk 00:15:55]} {[%emt 00:01:04]} Bd5 {[%clk 00:40:56]} {[%emt 00:00:45]}
21. Qe2 {[%clk 00:09:22]} {[%emt 00:07:04]} Rae8 {[%clk 00:39:53]} {[%emt
00:01:32]} 22. Rc2 {[%clk 00:08:42]} {[%emt 00:01:12]} Qd8 {[%clk 00:30:30]}
{[%emt 00:09:53]} 23. exd5 {[%clk 00:03:58]} {[%emt 00:05:13]} Rxe2+ {[%clk
00:30:40]} {[%emt 00:00:20]} 24. Rxe2 {[%clk 00:04:23]} {[%emt 00:00:04]} Qg5
{[%clk 00:28:42]} {[%emt 00:02:29]} 25. Kd1 {[%clk 00:00:59]} {[%emt 00:03:54]}
Nf6 {[%clk 00:23:43]} {[%emt 00:05:29]} 26. Rhe1 {[%clk 00:00:40]} {[%emt
00:00:48]} Nxd5 {[%clk 00:15:31]} {[%emt 00:08:43]} 27. Bxd5+ {[%clk 00:00:43]}
{[%emt 00:00:27]} Qxd5 {[%clk 00:15:52]} {[%emt 00:00:09]} 28. Rc2 {[%clk
00:01:07]} {[%emt 00:00:07]} Rf3 {[%clk 00:12:17]} {[%emt 00:04:05]} 29. Nab2
{[%clk 00:01:01]} {[%emt 00:00:36]} Qf5 {[%clk 00:11:31]} {[%emt 00:01:15]} 30.
Rd2 {[%clk 00:00:35]} {[%emt 00:00:56]} Bc5 {[%clk 00:10:41]} {[%emt 00:01:20]}
31. Kc2 {[%clk 00:00:59]} {[%emt 00:00:06]} Qd5 {[%clk 00:07:59]} {[%emt
00:03:12]} 32. Rde2 {[%clk 00:01:02]} {[%emt 00:00:27]} Re3 {[%clk 00:07:12]}
{[%emt 00:01:18]} 33. Nc4 {[%clk 00:01:10]} {[%emt 00:00:22]} Rxe2+ {[%clk
00:06:29]} {[%emt 00:01:12]} 34. Rxe2 {[%clk 00:01:33]} {[%emt 00:00:06]} Qxc6
{[%clk 00:06:47]} {[%emt 00:00:13]} 35. a4 {[%clk 00:00:42]} {[%emt 00:01:20]}
Bb4 {[%clk 00:06:44]} {[%emt 00:00:33]} 36. Kb2 {[%clk 00:00:37]} {[%emt
00:00:36]} Qf3 {[%clk 00:03:17]} {[%emt 00:03:58]} 37. Re8+ {[%clk 00:01:00]}
{[%emt 00:00:06]} Kg7 {[%clk 00:03:40]} {[%emt 00:00:07]} 38. Re7+ {[%clk
00:00:58]} {[%emt 00:00:31]} Kf8 {[%clk 00:03:31]} {[%emt 00:00:40]} 0-1